fUST/lending_fUST_20250930
["ID","MTS","AMOUNT","RATE_DAILY","PERIOD"]
[388561818,1759242639326,-500.0,0.00019178,2]
[388561819,1759242639339,-500.0,0.00019178,2]
[388561820,1759242639349,-151.0,0.00019178,2]
[388561821,1759242639359,-166.66,0.00019178,2]
[388561822,1759242639369,-157.766017,0.00019178,2]
[388561823,1759242639380,-500.0,0.00019178,2]
[388561824,1759242639391,-500.0,0.00019178,2]
[388561825,1759242639400,-480.0,0.00019178,2]
[388561826,1759242639409,-500.0,0.00019178,2]
[388561827,1759242639419,-151.0,0.00019178,2]
[388561828,1759242639429,-151.0,0.00019178,2]
[388561829,1759242639438,-151.0,0.00019178,2]
[388561830,1759242639450,-500.0,0.00019178,2]
[388561831,1759242639460,-151.0,0.00019178,2]
[388561832,1759242639469,-151.20180222,0.00019178,2]
[388561833,1759242639480,-151.0,0.00019178,2]
[388561834,1759242639491,-257.00009859,0.00019178,2]
[388561835,1759242639501,-500.0,0.00019178,2]
[388561836,1759242639510,-470.55428362,0.00019178,2]
[388561837,1759242639519,-500.0,0.00019178,2]
[388561838,1759242639529,-347.321377,0.00019178,2]
[388561839,1759242639539,-500.0,0.00019178,2]
[388561840,1759242639548,-284.90635201,0.00019178,2]
[388561841,1759242639558,-500.0,0.00019178,2]
[388561842,1759242639568,-500.0,0.00019178,2]
[388561843,1759242639578,-500.0,0.00019178,2]
[388561844,1759242639588,-460.0,0.00019178,2]
[388561845,1759242639598,-500.0,0.00019178,2]
[388561846,1759242639607,-500.0,0.00019178,2]
[388561847,1759242639618,-500.0,0.00019178,2]
[388561848,1759242639628,-500.0,0.00019178,2]
[388561849,1759242639637,-500.0,0.00019178,2]
[388561850,1759242639647,-500.0,0.00019178,2]
[388561851,1759242639656,-3353.62,0.00019178,2]
[388561853,1759242639666,-500.0,0.00019178,2]
[388561855,1759242639677,-500.0,0.00019178,2]
[388561856,1759242639687,-500.0,0.00019178,2]
[388561858,1759242639696,-500.0,0.00019178,2]
[388561860,1759242639706,-500.0,0.00019178,2]
[388561861,1759242639715,-500.0,0.00019178,2]
[388561863,1759242639725,-1015.47,0.00019178,2]
[388561864,1759242639734,-151.0,0.00019178,2]
[388561866,1759242639746,-500.0,0.00019178,2]
[388561868,1759242639756,-500.0,0.00019178,2]
[388561870,1759242639765,-500.0,0.00019178,2]
[388561871,1759242639775,-500.0,0.00019178,2]
[388561873,1759242639784,-500.0,0.00019178,2]
[388561875,1759242639794,-577.46,0.00019178,2]
[388561876,1759242639804,-500.0,0.00019178,2]
[388561879,1759242639814,-596.28225849,0.00019178,2]
[388561881,1759242639824,-500.0,0.00019178,2]
[388561882,1759242639834,-460.0,0.00019178,2]
[388561884,1759242639844,-3914.63,0.00019178,2]
[388561885,1759242639853,-500.0,0.00019178,2]
[388561887,1759242639862,-500.0,0.00019178,2]
[388561889,1759242639873,-480.0,0.00019178,2]
[388561892,1759242639882,-460.0,0.00019178,2]
[388561894,1759242639892,-500.0,0.00019178,2]
[388561895,1759242639902,-500.0,0.00019178,2]
[388561896,1759242639912,-460.0,0.00019178,2]
[388561897,1759242639921,-218.30428708,0.00019178,2]
[388561898,1759242639930,-500.0,0.00019178,2]
[388561900,1759242639939,-500.0,0.00019178,2]
[388561901,1759242639949,-500.0,0.00019178,2]
[388561902,1759242639959,-500.0,0.00019178,2]
[388561903,1759242639968,-500.0,0.00019178,2]
[388561904,1759242639977,-500.0,0.00019178,2]
[388561905,1759242639987,-500.0,0.00019178,2]
[388561906,1759242639998,-253.89736308,0.00019178,2]
[388561907,1759242640008,-500.0,0.00019178,2]
[388561908,1759242640017,-480.0,0.00019178,2]
[388561909,1759242640027,-500.0,0.00019178,2]
[388561910,1759242640036,-522.23118701,0.00019178,2]
[388561911,1759242640045,-480.0,0.00019178,2]
[388561912,1759242640055,-480.0,0.00019178,2]
[388561913,1759242640064,-500.0,0.00019178,2]
[388561914,1759242640074,-500.0,0.00019178,2]
[388561915,1759242640083,-216.79972779,0.00019178,2]
[388561917,1759242640093,-515.9,0.00019178,2]
[388561919,1759242640102,-480.0,0.00019178,2]
[388561921,1759242640112,-500.0,0.00019178,2]
[388561923,1759242640123,-480.0,0.00019178,2]
[388561924,1759242640133,-500.0,0.00019178,2]
[388561926,1759242640142,-500.0,0.00019178,2]
[388561927,1759242640151,-151.0,0.00019178,2]
[388561928,1759242640161,-480.0,0.00019178,2]
[388561929,1759242640170,-151.0,0.00019178,2]
[388561930,1759242640180,-500.0,0.00019178,2]
[388561931,1759242640189,-527.41182408,0.00019178,2]
[388561932,1759242640199,-704.96,0.00019178,2]
[388561933,1759242640208,-500.0,0.00019178,2]
[388561934,1759242640218,-500.0,0.00019178,2]
[388561935,1759242640227,-500.0,0.00019178,2]
[388561936,1759242640237,-500.0,0.00019178,2]
[388561937,1759242640250,-480.0,0.00019178,2]
[388561938,1759242640260,-460.0,0.00019178,2]
[388561939,1759242640269,-500.0,0.00019178,2]
[388561940,1759242640279,-500.0,0.00019178,2]
[388561941,1759242640288,-480.0,0.00019178,2]
[388561942,1759242640299,-203.033002,0.00019178,10]
[388561943,1759242640310,-500.0,0.00019178,2]
[388561944,1759242640320,-500.0,0.00019178,2]
[388561945,1759242640329,-151.0,0.00019178,2]
[388561946,1759242640340,-1225.0,0.00019178,2]
[388561947,1759242640350,-218.43791711,0.00019178,2]
[388561948,1759242640359,-480.0,0.00019178,2]
[388561949,1759242640368,-151.0,0.00019178,2]
[388561950,1759242640379,-151.35743579,0.00019178,2]
[388561951,1759242640388,-282.59546699,0.00019178,2]
[388561952,1759242640398,-500.0,0.00019178,2]
[388561953,1759242640407,-500.0,0.00019178,2]
[388561954,1759242640416,-172.7464205,0.00019178,2]
[388561955,1759242640426,-500.0,0.00019178,2]
[388561956,1759242640436,-500.0,0.00019178,2]
[388561957,1759242640445,-151.0,0.00019178,2]
[388561958,1759242640455,-151.0,0.00019178,2]
[388561959,1759242640464,-151.0,0.00019178,2]
[388561960,1759242640473,-500.0,0.00019178,2]
[388561961,1759242640483,-151.18199785,0.00019178,2]
[388561962,1759242640494,-480.0,0.00019178,2]
[388561963,1759242640503,-500.0,0.00019178,2]
[388561964,1759242640513,-151.0,0.00019178,2]
[388561965,1759242640523,-500.0,0.00019178,2]
[388561966,1759242640532,-500.0,0.00019178,2]
[388561967,1759242640542,-500.0,0.00019178,2]
[388561968,1759242640551,-500.0,0.00019178,2]
[388561969,1759242640561,-500.0,0.00019178,2]
[388561970,1759242640570,-185.080217,0.00019178,2]
[388561971,1759242640579,-185.080217,0.00019178,2]
[388561972,1759242640588,-519.41,0.00019178,2]
[388561973,1759242640597,-185.080217,0.00019178,2]
[388561974,1759242640607,-185.080217,0.00019178,2]
[388561975,1759242640616,-500.0,0.00019178,2]
[388561976,1759242640625,-185.080217,0.00019178,2]
[388561977,1759242640635,-185.080217,0.00019178,2]
[388561978,1759242640644,-500.0,0.00019178,2]
[388561979,1759242640654,-607.67,0.00019178,2]
[388561980,1759242640663,-480.0,0.00019178,2]
[388561981,1759242640672,-185.080217,0.00019178,2]
[388561982,1759242640682,-185.080217,0.00019178,2]
[388561983,1759242640691,-500.0,0.00019178,2]
[388561984,1759242640702,-460.0,0.00019178,2]
[388561985,1759242640711,-500.0,0.00019178,2]
[388561986,1759242640720,-500.0,0.00019178,2]
[388561987,1759242640731,-715.39,0.00019178,2]
[388561988,1759242640740,-183.35994128,0.00019178,2]
[388561989,1759242640751,-460.0,0.00019178,2]
[388561990,1759242640760,-500.0,0.00019178,2]
[388561991,1759242640769,-480.0,0.00019178,2]
[388561992,1759242640779,-480.0,0.00019178,2]
[388561993,1759242640788,-151.0,0.00019178,2]
[388561994,1759242640798,-151.0,0.00019178,2]
[388561995,1759242640807,-50000.0,0.00019178,2]
[388561996,1759242640817,-500.0,0.0001919,3]
[388561997,1759242640826,-2923.0,0.00019194,2]
[388561998,1759242640836,-175.0,0.000192,2]
[388561999,1759242640846,-160.3415537,0.000192,2]
[388562000,1759242640855,-168.0,0.0001921,2]
[388562001,1759242640865,-979.0,0.00019216,2]
[388562002,1759242640874,-630.0,0.00019216,2]
[388562003,1759242640883,-2156.0,0.00019216,2]
[388562004,1759242640892,-168.0,0.00019237,2]
[388562005,1759242640902,-250.0,0.0001924,2]
[388562006,1759242640911,-211.632,0.0001924,2]
[388562007,1759242640920,-285.09,0.0001924,2]
[388562008,1759242640930,-150.772,0.0001924,2]
[388562009,1759242640939,-150.0,0.0001924,2]
[388562010,1759242640949,-251.827,0.0001924,2]
[388562011,1759242640958,-263.23,0.0001924,2]
[388562012,1759242640967,-295.0,0.0001924,2]
[388562013,1759242640976,-293.239,0.0001924,2]
[388562014,1759242640985,-454.6941762,0.0001929,2]
[388562015,1759242640995,-928.49020916,0.0001929,2]
[388562016,1759242641004,-29077.7339283,0.000193,2]
[388562017,1759242641014,-151.0,0.000193,2]
[388562018,1759242641023,-151.0,0.000193,2]
[388562019,1759242641034,-151.0,0.000193,2]
[388562020,1759242641044,-151.0,0.000193,2]
[388562021,1759242641054,-185.080217,0.000193,2]
[388562022,1759242641065,-185.080217,0.000193,2]
[388562023,1759242641075,-185.080217,0.000193,2]
[388562024,1759242641085,-185.080217,0.000193,2]
[388562025,1759242641096,-151.0,0.000193,2]
[388562026,1759242641106,-299.0,0.00019342,3]
[388562027,1759242641116,-1424.69654932,0.00019363,2]
[388562028,1759242641126,-168.0,0.00019376,2]
[388562029,1759242641135,-168.0,0.000194,2]
[388562030,1759242641146,-315.504303,0.000194,2]
[388562031,1759242641155,-1318.3785731,0.000194,2]
[388562032,1759242641164,-500.0,0.00019452,2]
[388562033,1759242641173,-151.0,0.00019452,2]
[388562034,1759242641183,-151.0,0.00019452,2]
[388562035,1759242641193,-151.0,0.00019452,2]
[388562036,1759242641202,-151.0,0.00019452,2]
[388562037,1759242641211,-151.0,0.00019452,2]
[388562038,1759242641220,-157.24661627,0.00019452,2]
[388562039,1759242641229,-151.0,0.00019452,2]
[388562040,1759242641239,-500.0,0.00019452,2]
[388562041,1759242641249,-157.59009634,0.00019452,2]
[388562042,1759242641258,-157.37626526,0.00019452,2]
[388562043,1759242641269,-500.0,0.00019452,2]
[388562044,1759242641280,-1225.0,0.00019452,2]
[388562045,1759242641293,-151.0,0.00019452,2]
[388562046,1759242641302,-152.47006569,0.00019452,2]
[388562047,1759242641312,-151.0,0.00019452,2]
[388562048,1759242641322,-500.0,0.00019452,2]
[388562049,1759242641332,-151.0,0.00019452,2]
[388562050,1759242641341,-500.0,0.00019452,2]
[388562051,1759242641351,-336.30606123,0.00019452,2]
[388562052,1759242641360,-500.0,0.00019452,2]
[388562053,1759242641374,-500.0,0.00019452,2]
[388562054,1759242641383,-500.0,0.00019452,2]
[388562055,1759242641392,-500.0,0.00019452,2]
[388562056,1759242641402,-500.0,0.00019452,2]
[388562057,1759242641412,-500.0,0.00019452,2]
[388562058,1759242641421,-500.0,0.00019452,2]
[388562059,1759242641431,-500.0,0.00019452,2]
[388562060,1759242641440,-500.0,0.00019452,2]
[388562061,1759242641450,-500.0,0.00019452,2]
[388562062,1759242641459,-500.0,0.00019452,2]
[388562063,1759242641469,-500.0,0.00019452,2]
[388562064,1759242641478,-500.0,0.00019452,2]
[388562065,1759242641488,-385.71319965,0.00019452,2]
[388562066,1759242641498,-500.0,0.00019452,2]
[388562067,1759242641507,-500.0,0.00019452,2]
[388562068,1759242641518,-500.0,0.00019452,2]
[388562069,1759242641531,-500.0,0.00019452,2]
[388562070,1759242641540,-500.0,0.00019452,2]
[388562071,1759242641549,-500.0,0.00019452,2]
[388562072,1759242641558,-500.0,0.00019452,2]
[388562073,1759242641568,-500.0,0.00019452,2]
[388562074,1759242641580,-423.43908383,0.00019452,2]
[388562075,1759242641589,-500.0,0.00019452,2]
[388562076,1759242641598,-500.0,0.00019452,2]
[388562077,1759242641608,-500.0,0.00019452,2]
[388562078,1759242641617,-771.37,0.00019452,2]
[388562079,1759242641626,-500.0,0.00019452,2]
[388562080,1759242641635,-500.0,0.00019452,2]
[388562081,1759242641645,-500.0,0.00019452,2]
[388562082,1759242641655,-670.39,0.00019452,2]
[388562083,1759242641664,-680.65,0.00019452,2]
[388562084,1759242641674,-500.0,0.00019452,2]
[388562085,1759242641683,-500.0,0.00019452,2]
[388562086,1759242641692,-500.0,0.00019452,2]
[388562087,1759242641702,-500.0,0.00019452,2]
[388562088,1759242641712,-500.0,0.00019452,2]
[388562089,1759242641722,-500.0,0.00019452,2]
[388562090,1759242641731,-500.0,0.00019452,2]
[388562091,1759242641744,-500.0,0.00019452,2]
[388562092,1759242641753,-500.0,0.00019452,2]
[388562093,1759242641762,-515.93,0.00019452,2]
[388562094,1759242641771,-500.0,0.00019452,2]
[388562095,1759242641781,-500.0,0.00019452,2]
[388562096,1759242641790,-500.0,0.00019452,2]
[388562097,1759242641801,-501.75,0.00019452,2]
[388562098,1759242641810,-497.93563565,0.00019452,2]
[388562099,1759242641819,-500.0,0.00019452,2]
[388562100,1759242641829,-500.0,0.00019452,2]
[388562101,1759242641839,-500.0,0.00019452,2]
[388562102,1759242641848,-500.0,0.00019452,2]
[388562103,1759242641857,-500.0,0.00019452,2]
[388562104,1759242641867,-500.0,0.00019452,2]
[388562105,1759242641876,-995.82,0.00019452,2]
[388562106,1759242641885,-500.0,0.00019452,2]
[388562107,1759242641895,-694.53,0.00019452,2]
[388562108,1759242641905,-566.45,0.00019452,2]
[388562109,1759242641915,-500.0,0.00019452,2]
[388562110,1759242641924,-312.07501041,0.00019452,2]
[388562111,1759242641933,-500.0,0.00019452,2]
[388562112,1759242641942,-480.27714696,0.00019452,2]
[388562151,1759242659153,480.0,0.00019177,7]
[388562153,1759242673617,465.00021931,0.00033144,60]
[388562156,1759242763389,301.0,0.00019151,3]
[388562195,1759242992396,168.0,0.0001905,2]
[388562202,1759243078592,-344759.76902025,0.0003313,30]
[388562203,1759243078619,-6093.124,0.0003313,30]
[388562204,1759243089627,-101996.03227551,0.00021,21]
[388562205,1759243089714,-3108.88461567,0.00025714,30]
[388562206,1759243089743,-1380.92,0.00026,30]
[388562207,1759243089774,-154.65510662,0.00026982,30]
[388562208,1759243089806,-2844.62560294,0.0002785,60]
[388562209,1759243089837,-167.0,0.00027918,26]
[388562210,1759243089867,-162.834267,0.0002793,60]
[388562211,1759243089898,-105000.0,0.000285,60]
[388562212,1759243089928,-151.25247834,0.00029233,30]
[388562213,1759243089956,-162.834267,0.000294,20]
[388562214,1759243089985,-162.834267,0.000294,30]
[388562215,1759243090012,-11887.30636576,0.000294,120]
[388562216,1759243090039,-200.0,0.0002942,120]
[388562217,1759243090066,-198.09759764,0.0002947,20]
[388562218,1759243090092,-200.0,0.00029505,120]
[388562219,1759243090118,-151.25247834,0.00029616,30]
[388562220,1759243090143,-73453.72055449,0.0003,30]
[388562221,1759243090169,-158.8843995,0.0003,60]
[388562222,1759243090195,-160.0,0.0003,30]
[388562223,1759243090220,-545.0,0.0003,120]
[388562224,1759243090246,-233.92491258,0.0003,30]
[388562225,1759243090272,-189.44378083,0.0003,30]
[388562226,1759243090299,-160.0,0.0003,30]
[388562227,1759243090325,-191.08538754,0.0003,120]
[388562228,1759243090352,-20031.5379579,0.0003,20]
[388562229,1759243090378,-168.42,0.0003,30]
[388562230,1759243090407,-160.0,0.0003,30]
[388562231,1759243090464,-1015.0,0.0003,30]
[388562232,1759243090655,-181.42535872,0.0003,120]
[388562233,1759243090686,-189.44378083,0.0003,120]
[388562234,1759243090714,-151.25247834,0.00030027,30]
[388562235,1759243090742,-180.0,0.0003011,38]
[388562236,1759243090769,-1322.4,0.00030137,30]
[388562237,1759243090796,-333.88148532,0.0003015,120]
[388562238,1759243090823,-2278.01817982,0.0003016,120]
[388562239,1759243090851,-151.25247834,0.00030411,30]
[388562240,1759243090879,-569.29542709,0.0003079,30]
[388562241,1759243090905,-45.73176997,0.000308,120]
[388562242,1759243090931,-160.0,0.000309,30]
[388562243,1759243090957,-233.92491258,0.000309,30]
[388562244,1759243090983,-189.44378083,0.000309,30]
[388562245,1759243091010,-3166.53945129,0.00031,120]
[388562246,1759243091035,-1600.11194874,0.00031,120]
[388562247,1759243091062,-233.92491258,0.00031,120]
[388562248,1759243091093,-5214.19762724,0.00031765,32]
[388562249,1759243091121,-219.07153715,0.00032,120]
[388562250,1759243091151,-284.64812441,0.00032,120]
[388562251,1759243091182,-176.59038018,0.00032,120]
[388562252,1759243091209,-266.69188253,0.00032,120]
[388562253,1759243091236,-229.22259416,0.00032,120]
[388562254,1759243091263,-188.01206312,0.00032,120]
[388562255,1759243091289,-183.47971838,0.00032,120]
[388562256,1759243091322,-200.0,0.00032,120]
[388562257,1759243091351,-288.60048734,0.00032,120]
[388562258,1759243091379,-224.0,0.00032,120]
[388562259,1759243091406,-306.06717994,0.00032,120]
[388562260,1759243091433,-200.08268891,0.00032,20]
[388562261,1759243091461,-160.0,0.00032,120]
[388562262,1759243091489,-933.0049196,0.0003214,30]
[388562263,1759243091521,-176.59038018,0.000323,120]
[388562264,1759243091549,-188.01206312,0.000323,120]
[388562265,1759243091577,-288.60048734,0.000323,120]
[388562266,1759243091606,-224.0,0.000323,120]
[388562267,1759243091635,-306.06717994,0.000323,120]
[388562268,1759243091665,-176.59038018,0.000326,120]
[388562269,1759243091699,-288.60048734,0.000326,120]
[388562270,1759243091729,-224.0,0.000326,120]
[388562271,1759243091763,-306.06717994,0.000326,120]
[388562272,1759243091793,-200.0,0.00032711,120]
[388562273,1759243091827,-3936.378,0.00032877,120]
[388562274,1759243091864,-152.09,0.00032913,60]
[388562275,1759243091892,-17498.418613,0.00033,60]
[388562276,1759243091920,-160.0,0.00033,120]
[388562277,1759243091947,-288.60048734,0.00033,120]
[388562278,1759243091974,-224.0,0.00033,120]
[388562279,1759243092000,-306.06717994,0.00033,120]
[388562280,1759243092029,-160.0,0.00033,120]
[388562281,1759243092059,-4153.25456906,0.00033,120]
[388562282,1759243092088,-152.09,0.00033013,60]
[388562283,1759243092118,-250.0,0.0003311,30]
[388562284,1759243092150,-250.0,0.0003311,60]
[388562285,1759243092179,-152.09,0.00033113,60]
[388562286,1759243092208,-250.0,0.00033123,30]
[388562287,1759243092236,-2282.11427948,0.00033124,30]
[388562288,1759243092264,-250.0,0.00033124,30]
[388562289,1759243092292,-2183.31810187,0.00033126,30]
[388562290,1759243092323,-250.0,0.00033126,30]
[388562291,1759243092357,-500.0,0.00033126,30]
[388562292,1759243092390,-2105.41764886,0.00033132,30]
[388562293,1759243092420,-250.0,0.00033132,30]
[388562294,1759243092450,-500.0,0.00033132,30]
[388562295,1759243092480,-2030.296672,0.00033145,30]
[388562296,1759243092509,-250.0,0.00033145,30]
[388562297,1759243092542,-500.0,0.00033145,30]
[388562298,1759243092573,-1888.0,0.00033161,30]
[388562299,1759243092603,-250.0,0.00033161,30]
[388562300,1759243092639,-1957.856,0.00033161,35]
[388562301,1759243092672,-250.0,0.00033161,35]
[388562302,1759243092706,-500.0,0.00033161,30]
[388562303,1759243092741,-500.0,0.00033161,35]
[388562304,1759243092778,-152.09,0.00033213,60]
[388562305,1759243092811,-288.60048734,0.000333,120]
[388562306,1759243092845,-224.0,0.000333,120]
[388562307,1759243092878,-306.06717994,0.000333,120]
[388562308,1759243092914,-152.09,0.00033313,60]
[388562309,1759243092949,-166.0,0.00033397,60]
[388562310,1759243092980,-152.09,0.00033413,60]
[388562311,1759243093014,-152.30318864,0.00033513,60]
[388562312,1759243093045,-150.0,0.00033576,60]
[388562313,1759243093078,-3499.0,0.00033673,60]
[388562314,1759243093112,-1762.377604,0.00033701,60]
[388562315,1759243093143,-160.76,0.00033721,60]
[388562316,1759243093171,-1011.5,0.00033759,60]
[388562317,1759243093203,-1364.0,0.0003376,60]
[388562318,1759243093239,-177.0,0.0003377,60]
[388562319,1759243093272,-1519.26537539,0.000338,60]
[388562320,1759243093304,-500.0,0.00033816,30]
[388562321,1759243093340,-479.98,0.00033972,20]
[388562322,1759243093373,-10000.0,0.00033989,60]
[388562323,1759243093406,-10000.0,0.00033989,60]
[388562324,1759243093435,-10000.0,0.00033989,60]
[388562325,1759243093464,-10000.0,0.00033989,60]
[388562326,1759243093495,-10000.0,0.00033989,60]
[388562327,1759243093529,-5685.0,0.00033989,60]
[388562328,1759243093564,-200.0,0.00034,120]
[388562329,1759243093598,-213.0,0.00034027,60]
[388562330,1759243093630,-479.98,0.0003452,21]
[388562331,1759243093661,-750.138394,0.00034849,120]
[388562332,1759243093693,-270.02,0.00034875,30]
[388562333,1759243093722,-150.0,0.00035,69]
[388562334,1759243093753,-172.01,0.00035,30]
[388562335,1759243093783,-479.98,0.00035068,22]
[388562336,1759243093814,-486.59,0.00035284,30]
[388562337,1759243093846,-479.98,0.00035616,23]
[388562338,1759243093877,-200.0,0.00036,120]
[388562339,1759243093909,-479.98,0.00036164,24]
[388562340,1759243093940,-479.98,0.00036712,25]
[388562341,1759243093971,-504260.69160542,0.00036789,60]
[388562342,1759243094000,-454632.83785031,0.00036789,60]
[388562343,1759243094030,-486.59,0.00036964,60]
[388562344,1759243094062,-50000.0,0.00037,120]
[388562345,1759243094101,-341.02063215,0.00037,120]
[388562346,1759243094136,-23579.5424579,0.00037175,28]
[388562347,1759243094170,-479.98,0.0003726,26]
[388562348,1759243094204,-479.98,0.00037808,27]
[388562349,1759243094237,-23579.5424579,0.00037936,30]
[388562350,1759243094266,-390.67788398,0.00038,60]
[388562351,1759243094299,-200.0,0.00038,120]
[388562352,1759243094331,-156.26796631,0.00038,120]
[388562353,1759243094362,-156.26796631,0.00038,120]
[388562354,1759243094392,-156.26796631,0.00038,120]
[388562355,1759243094421,-156.26796631,0.00038,120]
[388562356,1759243094453,-156.26796631,0.00038,120]
[388562357,1759243094484,-166.0,0.00038329,111]
[388562358,1759243094515,-479.98,0.00038356,28]
[388562359,1759243094551,-1074.57,0.00038356,120]
[388562360,1759243094584,-23579.5424579,0.00038696,31]
[388562361,1759243094615,-479.98,0.00038904,29]
[388562362,1759243094648,-50000.0,0.00039,120]
[388562363,1759243094678,-4062.33237913,0.00039,120]
[388562364,1759243094710,-1074.57,0.00039178,120]
[388562365,1759243094933,-479.98,0.00039452,30]
[388562366,1759243094964,-23579.5424579,0.00039457,33]
[388562367,1759243094992,-1121.60502889,0.0004,30]
[388562368,1759243095021,-518.18001625,0.0004,120]
[388562369,1759243095048,-977.94331769,0.0004,30]
[388562370,1759243095076,-200.0,0.0004,120]
[388562371,1759243095104,-605.7919029,0.0004,120]
[388562372,1759243095132,-50000.0,0.0004,120]
[388562373,1759243095159,-160.0,0.0004,120]
[388562374,1759243095187,-257939.31559367,0.0004,120]
[388562375,1759243095214,-189.44378083,0.0004,30]
[388562376,1759243095245,-233.92491258,0.0004,30]
[388562377,1759243095272,-1059906.93201208,0.0004,120]
[388562378,1759243102117,-225.41021445,0.00032,120]
[388562379,1759243102147,-225.41021445,0.000323,120]
[388562380,1759243102177,-225.41021445,0.000326,120]
[388562381,1759243102212,-350.0,0.00035504,20]
[388562382,1759243102242,-1767481.210577,0.0004,120]
[388562383,1759243102271,-479.98,0.0004,31]
[388562384,1759243102300,-233.92491258,0.0004,120]
[388562385,1759243102327,-189.44378083,0.0004,120]
[388562386,1759243102360,-1074.57,0.0004,120]
[388562387,1759243102386,-2000.0,0.0004,120]
[388562388,1759243102418,-406.3930322,0.00040193,120]
[388562389,1759243102445,-479.98,0.00040547,32]
[388562390,1759243102472,-1074.57,0.00040821,120]
[388562391,1759243102499,-10075.36,0.000409,60]
[388562392,1759243102532,-100000.0,0.00041,120]
[388562393,1759243102560,-8500.0,0.00041,30]
[388562394,1759243102591,-479.98,0.00041095,33]
[388562395,1759243102617,-251.77,0.00041096,120]
[388562396,1759243102643,-500.0,0.00041096,31]
[388562397,1759243102670,-500.0,0.00041096,31]
[388562398,1759243102697,-425.25614483,0.00041096,31]
[388562399,1759243102722,-158.36179387,0.00041096,31]
[388562400,1759243102747,-160.0,0.000412,120]
[388562401,1759243102773,-189.44378083,0.000412,120]
[388562402,1759243102800,-233.92491258,0.000412,120]
[388562403,1759243102825,-479.98,0.00041643,34]
[388562404,1759243102854,-1074.57,0.00041643,120]
[388562405,1759243102882,-379819.11246766,0.00041975,120]
[388562406,1759243102908,-200.0,0.00042,120]
[388562407,1759243102934,-4664.32842954,0.00042,120]
[388562408,1759243102961,-10057.43507794,0.00042,120]
[388562409,1759243102989,-479.98,0.00042191,35]
[388562410,1759243103016,-1784.38654602,0.000424,120]
[388562411,1759243103045,-1074.57,0.00042465,120]
[388562412,1759243103072,-656.0,0.000426,120]
[388562413,1759243103099,-479.98,0.00042739,36]
[388562414,1759243103125,-285.32723151,0.00043,120]
[388562415,1759243103152,-196.88,0.00043,120]
[388562416,1759243103179,-150164.44598736,0.00043,120]
[388562417,1759243103206,-480.13863792,0.00043287,37]
[388562418,1759243103236,-1074.57,0.00043287,120]
[388562419,1759243103264,-100043.0,0.0004333,30]
[388562420,1759243103291,-451064.89604398,0.00043444,30]
[388562422,1759243112406,-4653.7673468,0.00032,120]
[388562423,1759243112434,-969.4105054,0.00032,120]
[388562424,1759243112462,-4653.7673468,0.000323,120]
[388562425,1759243112490,-4653.7673468,0.000326,120]
[388562426,1759243112518,-225.41021445,0.00033,120]
[388562427,1759243112548,-233.92491258,0.00033,120]
[388562428,1759243112575,-189.44378083,0.00033,120]